[Event "LJ Slovak Open 2022"]
[Site "Liptovsky Jan"]
[Date "2022.06.26"]
[Round "7.19"]
[White "Ziaran, Viliam"]
[Black "Krestian, Darius"]
[Result "1/2-1/2"]
[ECO "B13"]
[WhiteElo "1832"]
[BlackElo "1659"]
[Annotator "NA RC"]
[PlyCount "116"]
[EventDate "2022.06.23"]
[EventType "swiss"]
[EventCountry "SVK"]
[SourceTitle "playchess.com"]
[Source "ChessBase"]
[SourceQuality "1"]
[TimeControl "3600+30"]

1. e4 {[%emt 0:00:41]} c6 {[%emt 0:00:07]} 2. Nc3 {[%emt 0:00:10]} d5 {[%emt 0:00:12]} 3. Nf3 {[%emt 0:00:07]} Nf6 {[%emt 0:00:08]} 4. exd5 {[%emt 0:01:52]} cxd5 {[%emt 0:00:11]} 5. d4 {[%emt 0:00:10]} Nc6 {[%emt 0:00:41]} 6. h3 {[%emt 0:00:22]} Bf5 {[%emt 0:01:04]} 7. Bd3 {[%emt 0:03:23]} Bxd3 {[%emt 0:02:08]} 8. Qxd3 {[%emt 0:00:12]} e6 {[%emt 0:00:13]} 9. Bg5 {[%emt 0:01:15]} Be7 {[%emt 0:01:43]} 10. O-O {[%emt 0:01:05]} O-O {[%emt 0:05:20]} 11. Rfe1 {[%emt 0:00:30]} Rc8 {[%emt 0:00:30]} 12. a3 {[%emt 0:01:31]} Qb6 {[%emt 0:01:45]} 13. b4 {[%emt 0:07:37]} a6 {[%emt 0:04:13]} 14. Rad1 {[%emt 0:03:06]} Qc7 {[%emt 0:02:26]} 15. Ne2 {[%emt 0:01:36]} Na7 {[%emt 0:01:30]} 16. Rc1 {[%emt 0:09:07]} Nb5 {[%emt 0:02:39]} 17. Bf4 {[%emt 0:03:12]} Bd6 {[%emt 0:01:56]} 18. Bxd6 {[%emt 0:00:34]} Qxd6 {[%emt 0:00:20]} 19. a4 {[%emt 0:00:51]} Na7 {[%emt 0:01:11]} 20. c3 {[%emt 0:01:25]} Qc6 {[%emt 0:03:06]} 21. Qc2 {[%emt 0:03:30]} Ne4 {[%emt 0:01:21]} 22. Ne5 {[%emt 0:00:30]} Qc7 {[%emt 0:01:10]} 23. f3 {[%emt 0:01:28]} Nd6 {[%emt 0:02:37]} 24. Nf4 {[%emt 0:02:32]} Nc6 {[%emt 0:02:11]} 25. Qf2 {[%emt 0:03:36]} Nxe5 {[%emt 0:02:15]} 26. dxe5 {[%emt 0:00:16]} Nc4 {[%emt 0:00:35]} 27. Nd3 {[%emt 0:00:30]} Qc6 {[%emt 0:06:04]} 28. a5 {[%emt 0:03:32]} Rc7 {[%emt 0:03:31]} 29. g3 {[%emt 0:01:38]} Rfc8 {[%emt 0:01:15]} 30. Kh2 {[%emt 0:01:00]} Qb5 {[%emt 0:03:23]} 31. Nc5 {[%emt 0:01:32]} b6 {[%emt 0:01:15]} 32. axb6 {[%emt 0:00:47]} Nxb6 {[%emt 0:00:11]} 33. Ra1 {[%emt 0:00:58]} Nd7 {[%emt 0:00:56]} 34. Ra5 {[%emt 0:02:13]} Qc4 {[%emt 0:01:51]} 35. Nxa6 {[%emt 0:02:00]} Rc6 {[%emt 0:01:39]} 36. b5 {[%emt 0:06:02]} Rb6 {[%emt 0:00:58]} 37. Ra3 {[%emt 0:00:26]} Qxb5 {[%emt 0:01:32]} 38. Nb4 {[%emt 0:00:32]} Nc5 {[%emt 0:01:01]} 39. Qd4 {[%emt 0:00:26]} Rbb8 {[%emt 0:01:09]} 40. g4 {[%emt 0:00:48]} Ra8 {[%emt 0:00:28]} 41. Rxa8 {[%emt 0:00:46]} Rxa8 {[%emt 0:00:01]} 42. Kg3 {[%emt 0:00:23]} Rc8 {[%emt 0:02:08]} 43. Kf4 {[%emt 0:02:10]} Na4 {[%emt 0:02:47]} 44. Qd3 {[%emt 0:01:12]} Qxd3 {[%emt 0:01:44]} 45. Nxd3 {[%emt 0:00:07]} Rxc3 {[%emt 0:00:13]} 46. Ra1 {[%emt 0:01:36]} Rc4+ {[%emt 0:01:32]} 47. Ke3 {[%emt 0:00:59]} g6 {[%emt 0:01:06]} 48. Kd2 {[%emt 0:00:55]} Nc5 {[%emt 0:00:59]} 49. Nxc5 {[%emt 0:01:44]} Rxc5 {[%emt 0:00:01]} 50. Kd3 {[%emt 0:01:00]} Rb5 {[%emt 0:00:26]} 51. Ra3 {[%emt 0:00:14]} Rb2 {[%emt 0:00:12]} 52. f4 {[%emt 0:00:41]} Rh2 {[%emt 0:00:37]} 53. Kd4 {[%emt 0:00:16]} Kg7 {[%emt 0:00:54]} 54. Rf3 {[%emt 0:01:03]} Ra2 {[%emt 0:00:49]} 55. f5 {[%emt 0:00:52]} Ra4+ {[%emt 0:00:17]} 56. Kc5 {[%emt 0:00:22]} Re4 {[%emt 0:02:42]} 57. fxe6 {[%emt 0:01:02]} fxe6 {[%emt 0:00:04]} 58. Kd6 {[%emt 0:00:12]} d4 {[%emt 0:01:02]} 1/2-1/2

[Event "LJ Slovak Open 2022"]
[Site "Liptovsky Jan"]
[Date "2022.06.26"]
[Round "7.20"]
[White "Koska, Jiri"]
[Black "Kulich, Daniel"]
[Result "1-0"]
[ECO "A90"]
[WhiteElo "1759"]
[BlackElo "1648"]
[Annotator "NA RC"]
[PlyCount "175"]
[EventDate "2022.06.23"]
[EventType "swiss"]
[EventCountry "SVK"]
[SourceTitle "playchess.com"]
[Source "ChessBase"]
[SourceQuality "1"]
[TimeControl "3600+30"]

1. Nf3 {[%emt 0:00:04]} f5 {[%emt 0:00:16]} 2. g3 {[%emt 0:00:18]} Nf6 {[%emt 0:00:11]} 3. Bg2 {[%emt 0:00:06]} d5 {[%emt 0:00:11]} 4. O-O {[%emt 0:00:11]} e6 {[%emt 0:00:04]} 5. d4 {[%emt 0:00:24]} Bd6 {[%emt 0:00:14]} 6. e3 {[%emt 0:01:37]} O-O {[%emt 0:02:38]} 7. Nbd2 {[%emt 0:00:39]} c6 {[%emt 0:00:14]} 8. c4 {[%emt 0:00:13]} Bd7 {[%emt 0:00:38]} 9. c5 {[%emt 0:00:41]} Bc7 {[%emt 0:00:24]} 10. Qc2 {[%emt 0:05:42]} Be8 {[%emt 0:03:40]} 11. b4 {[%emt 0:06:11]} a5 {[%emt 0:02:14]} 12. Rb1 {[%emt 0:01:13]} Bg6 {[%emt 0:07:44]} 13. Nh4 {[%emt 0:00:58]} b5 {[%emt 0:05:34]} 14. cxb6 {[%emt 0:03:53]} Bxb6 {[%emt 0:00:27]} 15. Nxg6 {[%emt 0:00:21]} hxg6 {[%emt 0:00:07]} 16. a3 {[%emt 0:03:56]} axb4 {[%emt 0:02:48]} 17. axb4 {[%emt 0:00:49]} Qd6 {[%emt 0:01:42]} 18. Nb3 {[%emt 0:01:33]} Nbd7 {[%emt 0:00:39]} 19. Nc5 {[%emt 0:00:40]} Bxc5 {[%emt 0:00:28]} 20. bxc5 {[%emt 0:00:06]} Qc7 {[%emt 0:00:18]} 21. Bd2 {[%emt 0:01:22]} Rfb8 {[%emt 0:01:06]} 22. Rxb8+ {[%emt 0:00:16]} Rxb8 {[%emt 0:00:43]} 23. Rb1 {[%emt 0:00:07]} Kf7 {[%emt 0:00:51]} 24. Bf1 {[%emt 0:05:06]} Ne4 {[%emt 0:01:26]} 25. Ra1 {[%emt 0:05:01]} Nxd2 {[%emt 0:10:25]} 26. Qxd2 {[%emt 0:00:12]} Rb7 {[%emt 0:02:10]} 27. Ra6 {[%emt 0:03:33]} Ra7 {[%emt 0:01:56]} 28. Qa2 {[%emt 0:00:45]} Rxa6 {[%emt 0:01:47]} 29. Qxa6 {[%emt 0:00:03]} Ke7 {[%emt 0:00:35]} 30. Be2 {[%emt 0:01:15]} Nb8 {[%emt 0:01:28]} 31. Qa8 {[%emt 0:00:38]} Kd7 {[%emt 0:01:16]} 32. g4 {[%emt 0:04:34]} Ke7 {[%emt 0:01:41]} 33. gxf5 {[%emt 0:01:40]} gxf5 {[%emt 0:00:22]} 34. Qa1 {[%emt 0:01:12]} g6 {[%emt 0:03:27]} 35. Kh1 {[%emt 0:00:57]} Kf6 {[%emt 0:04:00]} 36. Qg1 {[%emt 0:00:19]} g5 {[%emt 0:01:44]} 37. Qg2 {[%emt 0:01:54]} g4 {[%emt 0:02:57]} 38. Kg1 {[%emt 0:00:42]} Ke7 {[%emt 0:05:10]} 39. h3 {[%emt 0:00:41]} gxh3 {[%emt 0:01:29]} 40. Qg7+ {[%emt 0:00:50]} Kd8 {[%emt 0:00:18]} 41. Qf8+ {[%emt 0:03:02]} Kd7 {[%emt 0:00:11]} 42. Qf7+ {[%emt 0:00:08]} Kc8 {[%emt 0:01:36]} 43. Qxe6+ {[%emt 0:00:18]} Qd7 {[%emt 0:00:03]} 44. Qg8+ {[%emt 0:01:12]} Kb7 {[%emt 0:00:12]} 45. Qg3 {[%emt 0:00:50]} Qh7 {[%emt 0:02:10]} 46. Bf1 {[%emt 0:01:54]} Na6 {[%emt 0:01:10]} 47. Bxa6+ {[%emt 0:00:11]} Kxa6 {[%emt 0:00:04]} 48. Kh2 {[%emt 0:00:06]} Qe7 {[%emt 0:02:01]} 49. Qb8 {[%emt 0:01:13]} Ka5 {[%emt 0:01:08]} 50. Qb6+ {[%emt 0:00:11]} Ka4 {[%emt 0:00:05]} 51. Qxc6+ {[%emt 0:00:07]} Kb4 {[%emt 0:00:32]} 52. Qxd5 {[%emt 0:00:14]} Qh4 {[%emt 0:00:36]} 53. Qf3 {[%emt 0:00:36]} Qh7 {[%emt 0:01:07]} 54. Qxh3 {[%emt 0:01:18]} Qg6 {[%emt 0:00:20]} 55. Qg3 {[%emt 0:00:19]} Qh5+ {[%emt 0:00:12]} 56. Kg2 {[%emt 0:00:14]} Qf7 {[%emt 0:00:28]} 57. c6 {[%emt 0:02:17]} Qd5+ {[%emt 0:00:21]} 58. Qf3 {[%emt 0:00:05]} Qg8+ {[%emt 0:00:06]} 59. Kh1 {[%emt 0:00:10]} Qh7+ {[%emt 0:00:23]} 60. Kg1 {[%emt 0:00:08]} Qg8+ {[%emt 0:00:07]} 61. Qg3 {[%emt 0:01:02]} Qc4 {[%emt 0:01:01]} 62. c7 {[%emt 0:00:33]} Qc1+ {[%emt 0:00:18]} 63. Kh2 {[%emt 0:00:08]} Qc6 {[%emt 0:00:39]} 64. d5 {[%emt 0:01:05]} Qh6+ {[%emt 0:00:10]} 65. Kg1 {[%emt 0:00:10]} Qa6 {[%emt 0:00:35]} 66. d6 {[%emt 0:00:32]} Qa1+ {[%emt 0:00:08]} 67. Kg2 {[%emt 0:00:31]} Qa8+ {[%emt 0:00:04]} 68. f3 {[%emt 0:03:07]} Qa2+ {[%emt 0:00:19]} 69. Kh3 {[%emt 0:00:10]} Qe6 {[%emt 0:00:08]} 70. Qf4+ {[%emt 0:00:12]} Kb5 {[%emt 0:00:29]} 71. Kg3 {[%emt 0:07:37]} Qg8+ {[%emt 0:00:18]} 72. Kh2 {[%emt 0:00:08]} Qh7+ {[%emt 0:00:49]} 73. Kg2 {[%emt 0:00:10]} Qg8+ {[%emt 0:00:07]} 74. Qg3 {[%emt 0:00:07]} Qa2+ {[%emt 0:00:11]} 75. Qf2 {[%emt 0:00:10]} Qg8+ {[%emt 0:00:06]} 76. Kf1 {[%emt 0:00:06]} Kb6 {[%emt 0:01:46]} 77. Qb2+ {[%emt 0:00:17]} Ka6 {[%emt 0:00:38]} 78. Qa3+ {[%emt 0:00:21]} Kb5 {[%emt 0:01:19]} 79. Qd3+ {[%emt 0:00:10]} Kb6 {[%emt 0:00:21]} 80. Qc3 {[%emt 0:01:24]} Qc8 {[%emt 0:01:24]} 81. d7 {[%emt 0:00:30]} Qa6+ {[%emt 0:00:22]} 82. Ke1 {[%emt 0:00:10]} Qa2 {[%emt 0:01:33]} 83. c8=Q {[%emt 0:00:19]} Qb1+ {[%emt 0:00:04]} 84. Qc1 {[%emt 0:00:09]} Qb4+ {[%emt 0:00:07]} 85. Q8c3 {[%emt 0:00:05]} Qh4+ {[%emt 0:00:04]} 86. Kd1 {[%emt 0:00:18]} Qa4+ {[%emt 0:01:38]} 87. Q1c2 {[%emt 0:00:12]} Qxd7+ {[%emt 0:00:09]} 88. Qd4+ {[%emt 0:00:08]} 1-0

[Event "LJ Slovak Open 2022"]
[Site "Liptovsky Jan"]
[Date "2022.06.26"]
[Round "7.21"]
[White "Sokolovsky, Jakub"]
[Black "Haasova, Timea"]
[Result "1/2-1/2"]
[ECO "B46"]
[WhiteElo "1613"]
[BlackElo "1811"]
[Annotator "NA RC"]
[PlyCount "61"]
[EventDate "2022.06.23"]
[EventType "swiss"]
[EventCountry "SVK"]
[SourceTitle "playchess.com"]
[Source "ChessBase"]
[SourceQuality "1"]
[TimeControl "3600+30"]

1. e4 {[%emt 0:00:03]} c5 {[%emt 0:00:08]} 2. Nf3 {[%emt 0:00:10]} e6 {[%emt 0:00:08]} 3. d4 {[%emt 0:00:15]} cxd4 {[%emt 0:00:10]} 4. Nxd4 {[%emt 0:00:05]} Nf6 {[%emt 0:00:12]} 5. Nc3 {[%emt 0:00:14]} Nc6 {[%emt 0:00:14]} 6. a3 {[%emt 0:00:28]} a6 {[%emt 0:01:13]} 7. Nxc6 {[%emt 0:00:16]} bxc6 {[%emt 0:00:08]} 8. e5 {[%emt 0:00:15]} Nd5 {[%emt 0:00:21]} 9. Ne4 {[%emt 0:00:16]} Qc7 {[%emt 0:03:27]} 10. Qh5 {[%emt 0:00:13]} Be7 {[%emt 0:03:53]} 11. c4 {[%emt 0:05:36]} g6 {[%emt 0:04:52]} 12. Qe2 {[%emt 0:02:06]} Nb6 {[%emt 0:05:49]} 13. c5 {[%emt 0:09:05]} Nd5 {[%emt 0:01:59]} 14. Nd6+ {[%emt 0:00:32]} Bxd6 {[%emt 0:00:49]} 15. cxd6 {[%emt 0:00:17]} Qa5+ {[%emt 0:00:41]} 16. Bd2 {[%emt 0:00:42]} Qb6 {[%emt 0:01:37]} 17. Bc3 {[%emt 0:15:29]} a5 {[%emt 0:04:35]} 18. Qf3 {[%emt 0:02:30]} Ba6 {[%emt 0:01:27]} 19. Bxa6 {[%emt 0:01:03]} Qxa6 {[%emt 0:00:13]} 20. Rd1 {[%emt 0:08:01]} Qc4 {[%emt 0:04:34]} 21. Rd4 {[%emt 0:05:44]} Qb3 {[%emt 0:01:00]} 22. O-O {[%emt 0:02:13]} Nxc3 {[%emt 0:03:07]} 23. bxc3 {[%emt 0:00:03]} Qxa3 {[%emt 0:00:33]} 24. Qf6 {[%emt 0:00:59]} O-O {[%emt 0:00:30]} 25. h4 {[%emt 0:01:35]} h5 {[%emt 0:01:31]} 26. g4 {[%emt 0:03:34]} Kh7 {[%emt 0:03:05]} 27. gxh5 {[%emt 0:01:30]} gxh5 {[%emt 0:02:47]} 28. Qf3 {[%emt 0:01:55]} Kh6 {[%emt 0:01:46]} 29. Qf6+ {[%emt 0:00:30]} Kh7 {[%emt 0:00:08]} 30. Qf3 {[%emt 0:00:06]} Kh6 {[%emt 0:00:11]} 31. Qf6+ {[%emt 0:00:17]} 1/2-1/2

[Event "LJ Slovak Open 2022"]
[Site "Liptovsky Jan"]
[Date "2022.06.26"]
[Round "7.22"]
[White "Vastik, Lukas"]
[Black "Freibergs, Andrejs"]
[Result "1-0"]
[ECO "C01"]
[WhiteElo "1738"]
[BlackElo "1526"]
[Annotator "NA RC"]
[PlyCount "59"]
[EventDate "2022.06.23"]
[EventType "swiss"]
[EventCountry "SVK"]
[SourceTitle "playchess.com"]
[Source "ChessBase"]
[SourceQuality "1"]
[TimeControl "3600+30"]

1. e4 {[%emt 0:00:03]} e6 {[%emt 0:00:08]} 2. d4 {[%emt 0:00:04]} d5 {[%emt 0:00:04]} 3. exd5 {[%emt 0:00:05]} exd5 {[%emt 0:00:02]} 4. c4 {[%emt 0:00:10]} Nf6 {[%emt 0:00:36]} 5. Nc3 {[%emt 0:00:20]} Be7 {[%emt 0:00:39]} 6. Nf3 {[%emt 0:01:33]} O-O {[%emt 0:01:48]} 7. Be2 {[%emt 0:03:24]} Bf5 {[%emt 0:01:23]} 8. O-O {[%emt 0:00:18]} c6 {[%emt 0:06:06]} 9. Bf4 {[%emt 0:00:28]} Na6 {[%emt 0:01:03]} 10. a3 {[%emt 0:01:36]} Nc7 {[%emt 0:00:46]} 11. Qb3 {[%emt 0:02:47]} b6 {[%emt 0:01:03]} 12. Bxc7 {[%emt 0:00:45]} Qxc7 {[%emt 0:00:47]} 13. cxd5 {[%emt 0:00:05]} cxd5 {[%emt 0:00:21]} 14. Nxd5 {[%emt 0:00:23]} Qd7 {[%emt 0:00:15]} 15. Nxe7+ {[%emt 0:00:32]} Qxe7 {[%emt 0:00:17]} 16. Rfe1 {[%emt 0:00:36]} Qd6 {[%emt 0:00:19]} 17. Bc4 {[%emt 0:02:29]} a5 {[%emt 0:03:11]} 18. Ne5 {[%emt 0:01:06]} Ra7 {[%emt 0:00:16]} 19. Qf3 {[%emt 0:05:55]} Bc8 {[%emt 0:01:58]} 20. Rad1 {[%emt 0:03:17]} Bb7 {[%emt 0:01:50]} 21. Qf5 {[%emt 0:01:04]} Bd5 {[%emt 0:01:49]} 22. Re3 {[%emt 0:06:09]} g6 {[%emt 0:03:27]} 23. Qd3 {[%emt 0:02:09]} Rc7 {[%emt 0:02:13]} 24. Bxd5 {[%emt 0:05:15]} Nxd5 {[%emt 0:00:08]} 25. Rf3 {[%emt 0:00:42]} f6 {[%emt 0:00:53]} 26. Nc4 {[%emt 0:02:06]} Qc6 {[%emt 0:01:16]} 27. Ne3 {[%emt 0:00:32]} Rd8 {[%emt 0:01:22]} 28. Qb3 {[%emt 0:00:53]} Kg7 {[%emt 0:00:24]} 29. Nxd5 {[%emt 0:02:06]} Rxd5 {[%emt 0:00:11]} 30. Rc3 {[%emt 0:00:11]} 1-0

[Event "LJ Slovak Open 2022"]
[Site "Liptovsky Jan"]
[Date "2022.06.26"]
[Round "7.23"]
[White "Smetana, Peter"]
[Black "Hudak, Michal"]
[Result "1/2-1/2"]
[ECO "B41"]
[WhiteElo "1740"]
[BlackElo "1169"]
[Annotator "NA RC"]
[PlyCount "55"]
[EventDate "2022.06.23"]
[EventType "swiss"]
[EventCountry "SVK"]
[SourceTitle "playchess.com"]
[Source "ChessBase"]
[SourceQuality "1"]
[TimeControl "3600+30"]

1. e4 {[%emt 0:01:00]} c5 {[%emt 0:01:00]} 2. Nf3 {[%emt 0:00:30]} e6 {[%emt 0:00:31]} 3. d4 {[%emt 0:00:24]} cxd4 {[%emt 0:00:29]} 4. Nxd4 {[%emt 0:00:51]} a6 {[%emt 0:00:30]} 5. Qf3 {[%emt 0:01:17]} Nf6 {[%emt 0:00:15]} 6. Nc3 {[%emt 0:01:48]} e5 {[%emt 0:03:54]} 7. Nf5 {[%emt 0:01:08]} b5 {[%emt 0:02:31]} 8. Qg3 {[%emt 0:05:56]} Nc6 {[%emt 0:03:54]} 9. Nxg7+ {[%emt 0:01:24]} Bxg7 {[%emt 0:00:08]} 10. Qxg7 {[%emt 0:00:30]} Rg8 {[%emt 0:00:09]} 11. Qh6 {[%emt 0:00:37]} Rg6 {[%emt 0:04:21]} 12. Qe3 {[%emt 0:00:39]} Nd4 {[%emt 0:00:55]} 13. Bd3 {[%emt 0:00:51]} Rxg2 {[%emt 0:03:21]} 14. Bd2 {[%emt 0:02:35]} d6 {[%emt 0:03:22]} 15. f3 {[%emt 0:03:29]} Be6 {[%emt 0:03:49]} 16. Ne2 {[%emt 0:08:17]} Rxe2+ {[%emt 0:02:08]} 17. Qxe2 {[%emt 0:00:50]} Nxe2 {[%emt 0:00:05]} 18. Kxe2 {[%emt 0:00:12]} Qc7 {[%emt 0:03:09]} 19. a4 {[%emt 0:03:54]} b4 {[%emt 0:07:19]} 20. Bxb4 {[%emt 0:01:32]} Ke7 {[%emt 0:06:32]} 21. b3 {[%emt 0:01:39]} Rg8 {[%emt 0:00:47]} 22. Bd2 {[%emt 0:02:58]} Qb6 {[%emt 0:02:30]} 23. Be3 {[%emt 0:01:34]} Rg2+ {[%emt 0:00:13]} 24. Kf1 {[%emt 0:00:05]} Bh3 {[%emt 0:19:41]} 25. Bxb6 {[%emt 0:00:19]} Rxh2+ {[%emt 0:00:15]} 26. Kg1 {[%emt 0:00:08]} Rg2+ {[%emt 0:00:34]} 27. Kf1 {[%emt 0:00:18]} Rh2+ {[%emt 0:00:09]} 28. Kg1 {[%emt 0:00:10]} 1/2-1/2

[Event "LJ Slovak Open 2022"]
[Site "Liptovsky Jan"]
[Date "2022.06.26"]
[Round "7.24"]
[White "Ropovik, Samuel"]
[Black "Gollner, Martin"]
[Result "1-0"]
[ECO "B45"]
[WhiteElo "1453"]
[BlackElo "1585"]
[Annotator "NA RC"]
[PlyCount "101"]
[EventDate "2022.06.23"]
[EventType "swiss"]
[EventCountry "SVK"]
[SourceTitle "playchess.com"]
[Source "ChessBase"]
[SourceQuality "1"]
[TimeControl "3600+30"]

1. e4 {[%emt 0:00:02]} c5 {[%emt 0:00:08]} 2. Nf3 {[%emt 0:00:06]} e6 {[%emt 0:00:07]} 3. d4 {[%emt 0:00:06]} cxd4 {[%emt 0:00:06]} 4. Nxd4 {[%emt 0:00:02]} Nc6 {[%emt 0:00:10]} 5. Nc3 {[%emt 0:00:11]} Bc5 {[%emt 0:00:17]} 6. Ndb5 {[%emt 0:01:39]} a6 {[%emt 0:02:13]} 7. Nd6+ {[%emt 0:01:56]} Bxd6 {[%emt 0:00:24]} 8. Qxd6 {[%emt 0:00:04]} Nge7 {[%emt 0:00:35]} 9. Be3 {[%emt 0:04:50]} b5 {[%emt 0:02:12]} 10. O-O-O {[%emt 0:01:55]} O-O {[%emt 0:01:39]} 11. f3 {[%emt 0:03:25]} Qa5 {[%emt 0:04:10]} 12. Kb1 {[%emt 0:02:12]} b4 {[%emt 0:03:46]} 13. Ne2 {[%emt 0:00:50]} Bb7 {[%emt 0:01:13]} 14. Nc1 {[%emt 0:09:50]} Rfd8 {[%emt 0:23:56]} 15. Nb3 {[%emt 0:07:47]} Qe5 {[%emt 0:01:58]} 16. Nc5 {[%emt 0:07:08]} Qxd6 {[%emt 0:00:58]} 17. Rxd6 {[%emt 0:00:10]} Bc8 {[%emt 0:00:43]} 18. Be2 {[%emt 0:01:47]} f5 {[%emt 0:02:04]} 19. Rhd1 {[%emt 0:02:26]} e5 {[%emt 0:05:48]} 20. Ne6 {[%emt 0:03:28]} dxe6 {[%emt 0:01:00]} 21. Rxd8+ {[%emt 0:00:35]} Nxd8 {[%emt 0:00:01]} 22. Rxd8+ {[%emt 0:00:27]} Kf7 {[%emt 0:00:01]} 23. Rd6 {[%emt 0:03:40]} Ng6 {[%emt 0:03:00]} 24. Bc4 {[%emt 0:02:00]} f4 {[%emt 0:01:22]} 25. Bc5 {[%emt 0:01:48]} a5 {[%emt 0:00:39]} 26. Bf2 {[%emt 0:02:03]} Nf8 {[%emt 0:02:09]} 27. Be1 {[%emt 0:01:45]} Ke7 {[%emt 0:00:58]} 28. Rb6 {[%emt 0:00:51]} Ra7 {[%emt 0:02:00]} 29. c3 {[%emt 0:00:44]} Rc7 {[%emt 0:01:06]} 30. Bb3 {[%emt 0:00:45]} bxc3 {[%emt 0:00:32]} 31. Bxc3 {[%emt 0:00:03]} Rc5 {[%emt 0:02:20]} 32. Rb8 {[%emt 0:01:53]} Nd7 {[%emt 0:03:43]} 33. Ra8 {[%emt 0:00:26]} Kf6 {[%emt 0:01:45]} 34. Rxa5 {[%emt 0:00:52]} Rxa5 {[%emt 0:00:01]} 35. Bxa5 {[%emt 0:00:03]} Ba6 {[%emt 0:00:25]} 36. Bb4 {[%emt 0:03:22]} Bf1 {[%emt 0:00:33]} 37. g3 {[%emt 0:00:30]} Be2 {[%emt 0:00:17]} 38. Kc2 {[%emt 0:03:32]} g5 {[%emt 0:01:33]} 39. a4 {[%emt 0:02:09]} Bxf3 {[%emt 0:00:18]} 40. Kd3 {[%emt 0:00:25]} Bg2 {[%emt 0:01:51]} 41. a5 {[%emt 0:02:06]} Bf1+ {[%emt 0:00:34]} 42. Kd2 {[%emt 0:00:27]} Nb8 {[%emt 0:00:54]} 43. Bc2 {[%emt 0:01:00]} Na6 {[%emt 0:00:41]} 44. Bd6 {[%emt 0:00:27]} f3 {[%emt 0:01:43]} 45. Bd3 {[%emt 0:00:35]} Bxd3 {[%emt 0:00:05]} 46. Kxd3 {[%emt 0:00:08]} g4 {[%emt 0:00:48]} 47. b4 {[%emt 0:00:22]} h5 {[%emt 0:00:38]} 48. b5 {[%emt 0:00:20]} Kg5 {[%emt 0:00:18]} 49. bxa6 {[%emt 0:00:25]} h4 {[%emt 0:00:08]} 50. a7 {[%emt 0:00:09]} f2 {[%emt 0:00:18]} 51. Ke2 {[%emt 0:00:21]} 1-0

[Event "LJ Slovak Open 2022"]
[Site "Liptovsky Jan"]
[Date "2022.06.26"]
[Round "7.25"]
[White "Ambrozi, Peter"]
[Black "Bohacek, Ludovit"]
[Result "1-0"]
[ECO "A50"]
[WhiteElo "1994"]
[BlackElo "1594"]
[Annotator "RC"]
[PlyCount "63"]
[EventDate "2022.06.23"]
[EventType "swiss"]
[EventCountry "SVK"]
[SourceTitle "playchess.com"]
[Source "ChessBase"]
[SourceQuality "1"]
[TimeControl "3600+30"]

1. d4 {[%emt 0:00:07]} Nf6 {[%emt 0:00:26]} 2. Nf3 {[%emt 0:00:07]} g6 {[%emt 0:00:21]} 3. g3 {[%emt 0:00:08]} b6 {[%emt 0:00:23]} 4. Bg2 {[%emt 0:00:19]} Bb7 {[%emt 0:00:14]} 5. c4 {[%emt 0:00:27]} Bg7 {[%emt 0:00:09]} 6. O-O {[%emt 0:00:16]} O-O {[%emt 0:00:16]} 7. Nc3 {[%emt 0:00:09]} d6 {[%emt 0:00:33]} 8. Qc2 {[%emt 0:02:50]} Nbd7 {[%emt 0:01:43]} 9. Rd1 {[%emt 0:01:00]} c5 {[%emt 0:00:29]} 10. d5 {[%emt 0:00:28]} Bc8 {[%emt 0:00:37]} 11. e4 {[%emt 0:00:51]} Ng4 {[%emt 0:00:35]} 12. h3 {[%emt 0:01:11]} Nge5 {[%emt 0:00:24]} 13. Nxe5 {[%emt 0:00:33]} Nxe5 {[%emt 0:00:16]} 14. b3 {[%emt 0:00:45]} f5 {[%emt 0:00:35]} 15. f4 {[%emt 0:04:29]} Nf7 {[%emt 0:00:30]} 16. Bb2 {[%emt 0:01:10]} Bd4+ {[%emt 0:01:14]} 17. Rxd4 {[%emt 0:02:35]} cxd4 {[%emt 0:00:44]} 18. Nb5 {[%emt 0:00:05]} e5 {[%emt 0:00:22]} 19. dxe6 {[%emt 0:00:18]} Bxe6 {[%emt 0:01:00]} 20. Nxd4 {[%emt 0:00:09]} Bd7 {[%emt 0:01:39]} 21. exf5 {[%emt 0:00:20]} Rc8 {[%emt 0:00:42]} 22. fxg6 {[%emt 0:00:23]} Nh6 {[%emt 0:01:28]} 23. Bd5+ {[%emt 0:00:22]} Be6 {[%emt 0:03:00]} 24. Bxe6+ {[%emt 0:00:25]} Kh8 {[%emt 0:00:48]} 25. Nc6+ {[%emt 0:00:47]} Qf6 {[%emt 0:00:27]} 26. Bxf6+ {[%emt 0:00:19]} Rxf6 {[%emt 0:02:11]} 27. Bxc8 {[%emt 0:00:31]} Rxg6 {[%emt 0:00:30]} 28. g4 {[%emt 0:00:20]} Rg7 {[%emt 0:03:58]} 29. Qc3 {[%emt 0:00:30]} Kg8 {[%emt 0:00:30]} 30. Be6+ {[%emt 0:00:30]} Kf8 {[%emt 0:00:30]} 31. Qf6+ {[%emt 0:00:19]} Nf7 {[%emt 0:00:14]} 32. Bxf7 {[%emt 0:00:28]} 1-0

[Event "LJ Slovak Open 2022"]
[Site "Liptovsky Jan"]
[Date "2022.06.26"]
[Round "7.26"]
[White "Straka, Simon"]
[Black "Kukan, Michal"]
[Result "1-0"]
[ECO "D70"]
[WhiteElo "1523"]
[BlackElo "1767"]
[Annotator "NA RC"]
[PlyCount "73"]
[EventDate "2022.06.23"]
[EventType "swiss"]
[EventCountry "SVK"]
[SourceTitle "playchess.com"]
[Source "ChessBase"]
[SourceQuality "1"]
[TimeControl "3600+30"]

1. d4 {[%emt 0:00:02]} Nf6 {[%emt 0:00:12]} 2. c4 {[%emt 0:00:04]} g6 {[%emt 0:00:14]} 3. Nc3 {[%emt 0:00:05]} d5 {[%emt 0:00:38]} 4. cxd5 {[%emt 0:00:10]} Nxd5 {[%emt 0:00:13]} 5. e4 {[%emt 0:00:03]} Nb6 {[%emt 0:00:25]} 6. Be3 {[%emt 0:01:49]} Bg7 {[%emt 0:00:18]} 7. h3 {[%emt 0:01:46]} O-O {[%emt 0:00:26]} 8. Nf3 {[%emt 0:00:16]} N8d7 {[%emt 0:00:52]} 9. Qd2 {[%emt 0:05:02]} Re8 {[%emt 0:00:26]} 10. Be2 {[%emt 0:00:45]} c6 {[%emt 0:00:23]} 11. Rd1 {[%emt 0:00:49]} Nf6 {[%emt 0:00:50]} 12. Ne5 {[%emt 0:01:55]} Be6 {[%emt 0:01:32]} 13. O-O {[%emt 0:04:21]} Nc8 {[%emt 0:04:37]} 14. f4 {[%emt 0:09:35]} Nd6 {[%emt 0:01:00]} 15. Bd3 {[%emt 0:03:39]} Qc7 {[%emt 0:04:32]} 16. f5 {[%emt 0:01:16]} gxf5 {[%emt 0:06:21]} 17. exf5 {[%emt 0:00:46]} Bd5 {[%emt 0:00:38]} 18. Bh6 {[%emt 0:04:12]} Kh8 {[%emt 0:25:16]} 19. Bxg7+ {[%emt 0:04:19]} Kxg7 {[%emt 0:00:05]} 20. Ng4 {[%emt 0:00:24]} Kh8 {[%emt 0:04:11]} 21. Qh6 {[%emt 0:01:15]} Nxg4 {[%emt 0:00:34]} 22. hxg4 {[%emt 0:00:13]} f6 {[%emt 0:00:16]} 23. Qf4 {[%emt 0:03:25]} Rg8 {[%emt 0:00:31]} 24. Rc1 {[%emt 0:01:21]} Bf7 {[%emt 0:03:00]} 25. Kf2 {[%emt 0:03:17]} Rg5 {[%emt 0:00:22]} 26. Rh1 {[%emt 0:01:27]} Nb5 {[%emt 0:00:46]} 27. Qe3 {[%emt 0:02:14]} Nxc3 {[%emt 0:00:23]} 28. bxc3 {[%emt 0:00:16]} Rxg4 {[%emt 0:01:49]} 29. Rxh7+ {[%emt 0:01:28]} Kxh7 {[%emt 0:01:20]} 30. Qh3+ {[%emt 0:00:23]} Rh4 {[%emt 0:03:43]} 31. Qxh4+ {[%emt 0:00:09]} Kg8 {[%emt 0:00:41]} 32. Rh1 {[%emt 0:00:28]} Kf8 {[%emt 0:00:55]} 33. Qh8+ {[%emt 0:08:34]} Bg8 {[%emt 0:00:06]} 34. Rh4 {[%emt 0:01:55]} e6 {[%emt 0:04:21]} 35. Rg4 {[%emt 0:01:38]} Qh7 {[%emt 0:00:57]} 36. Qxf6+ {[%emt 0:01:02]} Ke8 {[%emt 0:00:27]} 37. fxe6 {[%emt 0:00:56]} 1-0